bitfinex/quotes_SOLUSD_20250507
["timestamp","ask_amount","ask_price","bid_price","bid_amount"]
[1746586511735,14.25630053,147.18,147.13,23.71656086]
[1746586512937,144.49359889,147.2,147.13,23.71656086]
[1746586513127,14.25630053,147.18,147.13,23.71656086]
[1746586513325,14.25630053,147.16,147.12,23.09707914]
[1746586514411,14.25630053,147.14,147.09,6.7985587]
[1746586515315,26.0,147.18,147.09,6.7985587]
[1746586515316,14.25630053,147.15,147.09,6.7985587]
[1746586521451,14.25630053,147.15,147.09,23.79495546]
[1746586521745,26.0,147.16,147.1,18.64964886]
[1746586524347,26.0,147.16,147.12,18.64964886]
[1746586524924,47.05166564,147.16,147.11,6.79763442]
[1746586525128,14.25630053,147.14,147.1,18.64964886]
[1746586525448,14.25630053,147.15,147.1,18.64964886]
[1746586526642,14.25630053,147.15,147.1,25.44750268]
[1746586527037,47.05166564,147.16,147.1,25.44750268]
[1746586527553,40.25630053,147.16,147.1,25.44750268]
[1746586527741,26.0,147.16,147.1,25.44750268]
[1746586529232,47.05171284,147.16,147.1,25.44750268]
[1746586530866,32.79541231,147.16,147.1,25.44750268]
[1746586531155,40.25630053,147.16,147.1,41.74750268]
[1746586532956,14.25630053,147.15,147.1,41.74750268]
[1746586534262,14.25630053,147.14,147.1,23.09785382]
[1746586536264,6.79591112,147.15,147.1,23.09785382]
[1746586536449,14.25630053,147.14,147.1,23.09785382]
[1746586536862,21.05221165,147.15,147.1,23.09785382]
[1746586537561,14.25630053,147.15,147.1,23.09785382]
[1746586537944,14.25630053,147.14,147.1,23.09785382]
[1746586539066,14.25630053,147.13,147.1,23.09785382]
[1746586539264,144.49597069,147.15,147.07,6.79948323]
[1746586539457,14.25630053,147.09,147.07,6.79948323]
[1746586539767,14.25630053,147.08,147.06,16.72]
[1746586539968,145.7439,147.1,147.03,6.80133306]
[1746586540172,14.25630053,147.07,147.03,6.80133306]
[1746586540356,145.7439,147.1,147.03,6.80133306]
[1746586540556,14.25630053,147.07,147.03,6.80133306]
[1746586555080,6.7987241,147.09,147.03,6.80133306]
[1746586555288,14.25630053,147.07,147.03,6.80133306]
[1746586557082,14.25630053,147.06,147.03,6.80133306]
[1746586557488,14.25630053,147.07,147.03,6.80133306]
[1746586557980,6.7989099,147.09,147.03,6.80133306]
[1746586558168,152.5422066,147.1,147.03,6.80133306]
[1746586558373,14.25630053,147.07,147.03,6.80133306]
[1746586559908,144.49866301,147.09,147.03,6.80133306]
[1746586560085,14.25630053,147.07,147.03,6.80133306]
[1746586560805,14.25630053,147.08,147.04,18.64964886]
[1746586561100,137.7,147.09,147.04,18.64964886]
[1746586561785,151.95630053,147.09,147.04,18.64964886]
[1746586561987,151.95630053,147.09,147.05,6.80040802]
[1746586564786,137.7,147.09,147.05,6.80040802]
[1746586567509,14.25630053,147.1,147.05,6.80040802]
[1746586570212,32.79764715,147.11,147.05,6.80040802]
[1746586570396,14.25630053,147.1,147.05,6.80040802]
[1746586570802,14.25630053,147.09,147.05,23.26040802]
[1746586571708,14.25630053,147.1,147.05,23.26040802]
[1746586572512,14.25630053,147.09,147.05,23.26040802]
[1746586572811,14.25630053,147.09,147.05,6.80040802]
[1746586573106,14.25630053,147.08,147.05,6.80040802]
[1746586573312,14.25630053,147.07,147.03,23.24133306]
[1746586573512,14.25630053,147.07,147.03,6.80133306]
[1746586574481,14.25630053,147.08,147.03,6.80133306]
[1746586577315,137.7,147.1,147.03,23.80466571]
[1746586577501,14.25630053,147.09,147.04,18.64964886]
[1746586577821,14.25630053,147.08,147.04,18.64964886]
[1746586578118,14.25630053,147.08,147.04,35.04964886]
[1746586578419,14.25630053,147.08,147.05,6.80040802]
[1746586581613,14.25630053,147.09,147.05,6.80040802]
[1746586583615,137.7,147.1,147.05,6.80040802]
[1746586583807,9.12469497,147.09,147.05,6.80040802]
[1746586584917,9.12469497,147.08,147.05,6.80040802]
[1746586585117,9.12469497,147.07,147.05,6.80040802]
[1746586585803,14.26159201,147.07,147.05,6.80040802]
[1746586586802,14.26159201,147.08,147.05,6.80040802]
[1746586587118,137.7,147.09,147.04,6.80087051]
[1746586587318,14.26159201,147.08,147.04,6.80087051]
[1746586588220,137.7,147.09,147.04,6.80087051]
[1746586588397,14.26159201,147.08,147.04,6.80087051]
[1746586589918,137.7,147.09,147.04,6.80087051]
[1746586590223,14.26159201,147.08,147.04,6.80087051]
[1746586591313,14.26159201,147.07,147.04,6.80087051]
[1746586591720,14.26159201,147.08,147.04,6.80087051]
[1746586592011,14.26159201,147.07,147.04,6.80087051]
[1746586593718,14.26159201,147.05,147.03,16.52]
[1746586594018,14.26159201,147.05,146.99,52.94134886]
[1746586594918,14.26159201,147.05,147.0,6.80272108]
[1746586596714,14.26159201,147.05,147.0,23.8095238]
[1746586597617,151.96159201,147.06,147.0,23.8095238]
[1746586599119,14.26159201,147.05,147.0,23.8095238]
[1746586604534,14.26159201,147.04,147.0,23.8095238]
[1746586605125,14.26159201,147.05,147.0,23.8095238]
[1746586606008,137.7,147.06,147.0,23.8095238]
[1746586606309,14.26159201,147.05,147.0,6.80272108]
[1746586606827,14.26159201,147.03,147.0,6.80272108]
[1746586607811,9.13320577,147.03,147.0,6.80272108]
[1746586609206,146.83320577,147.04,147.0,6.80272108]
[1746586609912,151.96890637,147.04,147.0,6.80272108]
[1746586610733,14.26890637,147.03,147.0,6.80272108]
[1746586612123,137.7,147.04,147.0,6.80272108]
[1746586612319,14.26890637,147.03,147.0,6.80272108]
[1746586612538,151.96890637,147.04,147.0,6.80272108]
[1746586615948,137.7,147.04,147.0,6.80272108]
[1746586616139,151.96890637,147.04,147.0,6.80272108]
[1746586618541,137.7,147.04,147.0,23.8095238]
[1746586619746,144.0471,147.08,147.0,23.8095238]
[1746586619950,151.96890637,147.07,147.01,18.64964886]
[1746586620336,151.96890637,147.07,147.02,23.80628485]
[1746586620527,137.7,147.07,147.02,23.80628485]
[1746586621642,137.7,147.07,147.03,18.64964886]
[1746586621856,26.0,147.1,147.03,34.94964886]
[1746586622041,14.26890637,147.08,147.03,34.94964886]
[1746586623450,14.26890637,147.08,147.04,6.80087051]
[1746586626062,14.26890637,147.06,147.03,16.3]
[1746586626235,14.26890637,147.04,147.02,6.80134565]
[1746586626433,14.26890637,147.04,147.0,6.80272108]
[1746586627250,14.26890637,147.03,146.99,23.12300993]
[1746586627661,137.7,147.06,146.99,23.12300993]
[1746586627848,137.7,147.06,147.0,18.64964886]
[1746586628028,137.7,147.06,147.01,6.80225834]
[1746586629356,40.26890637,147.07,147.02,18.64964886]
[1746586629357,26.0,147.07,147.02,18.64964886]
[1746586629653,14.26890637,147.08,147.02,18.64964886]
[1746586629955,14.26890637,147.07,147.02,18.64964886]
[1746586630760,14.26890637,147.07,147.03,6.80133306]
[1746586630941,163.7,147.09,147.03,6.80133306]
[1746586631139,14.26890637,147.08,147.03,6.80133306]
[1746586633065,163.7,147.09,147.03,6.80133306]
[1746586633236,177.96890637,147.09,147.03,6.80133306]
[1746586633435,14.26890637,147.07,147.03,6.80133306]
[1746586635466,163.7,147.09,147.03,6.80133306]
[1746586635657,14.26890637,147.08,147.03,6.80133306]
[1746586637763,9.12709559,147.08,147.03,6.80133306]
[1746586638168,170.49859033,147.09,147.03,6.80133306]
[1746586638368,9.12709559,147.08,147.03,6.80133306]
[1746586640762,9.12709559,147.07,147.03,6.80133306]
[1746586641654,170.49876508,147.09,147.03,6.80133306]
[1746586641858,9.12709559,147.07,147.03,6.80133306]
[1746586642263,9.12709559,147.06,147.03,6.80133306]
[1746586642565,9.12709559,147.06,147.02,23.0816414]
[1746586650672,9.12709559,147.06,146.99,6.4765]
[1746586650673,9.12709559,147.04,146.98,32.56]
[1746586651859,9.12709559,147.04,146.98,39.36364675]
[1746586655750,9.12709559,147.04,146.98,23.08364675]
[1746586656262,137.7,147.05,146.98,40.09276363]
[1746586656468,146.82709559,147.05,146.98,40.09276363]
[1746586659856,9.12709559,147.04,146.98,40.09276363]
[1746586660475,146.82709559,147.05,146.98,40.09276363]
[1746586663174,146.82709559,147.05,146.99,18.64964886]
[1746586663381,137.7,147.05,146.99,18.64964886]
[1746586664375,137.7,147.05,147.0,6.80272108]
[1746586668879,146.82709559,147.05,147.0,6.80272108]
[1746586671860,137.7,147.05,147.0,6.80272108]
[1746586673083,137.7,147.05,147.0,23.08272108]
[1746586673292,146.82709559,147.05,147.0,23.08272108]
[1746586674091,26.0,147.0,146.95,6.80503572]
[1746586674279,9.12709559,146.96,146.9,6.80735194]
[1746586674583,9.12709559,146.96,146.9,49.08735194]
[1746586675165,9.12709559,146.96,146.91,18.79181043]
[1746586675684,26.0,147.0,146.91,18.79181043]
[1746586675991,14.28487553,146.96,146.91,42.61506235]
[1746586676286,14.28487553,146.96,146.91,42.47290078]
[1746586676469,6.80318389,146.99,146.91,42.47290078]
[1746586676671,14.28487553,146.97,146.91,42.47290078]
[1746586678797,6.80318389,146.99,146.91,42.47290078]
[1746586678968,14.28487553,146.97,146.91,42.47290078]
[1746586681293,14.28487553,146.99,146.92,0.14216157]
[1746586682297,14.28487553,146.99,146.94,18.64964886]
[1746586682477,14.28487553,146.99,146.94,34.92964886]
[1746586683198,40.28487553,147.0,146.94,34.92964886]
[1746586686906,40.28487553,147.0,146.95,6.80503572]
[1746586687408,26.0,147.0,146.96,18.64964886]
[1746586687895,40.28487553,147.0,146.95,6.80503572]
[1746586690502,14.28487553,146.99,146.95,6.80503572]
[1746586691407,32.80273402,147.0,146.95,6.80503572]
[1746586691579,14.28487553,146.99,146.95,6.80503572]
[1746586695708,9.13779343,146.99,146.95,6.80503572]
[1746586697508,32.80273402,147.0,146.95,6.80503572]
[1746586697700,9.13779343,146.99,146.95,6.80503572]
[1746586697899,9.13779343,146.99,146.94,34.92964886]
[1746586698086,9.13779343,146.98,146.94,41.73501918]
[1746586700109,32.8028961,147.0,146.94,41.73501918]
[1746586700306,9.13779343,146.99,146.94,41.73501918]
[1746586700514,9.13779343,146.97,146.94,16.28]
[1746586700812,9.13779343,146.98,146.94,16.28]
[1746586701112,9.13779343,146.98,146.94,23.08533208]
[1746586701407,9.13779343,146.98,146.94,6.80533208]
[1746586702517,9.13779343,146.98,146.93,25.45561088]
[1746586706418,32.80293397,147.0,146.93,25.45561088]
[1746586706709,9.13779343,146.98,146.93,25.45561088]
[1746586712120,170.50247754,147.01,146.93,42.47051593]
[1746586712423,9.13779343,147.0,146.93,42.47051593]
[1746586712625,9.13779343,146.99,146.93,42.47051593]
[1746586713112,9.13779343,146.98,146.93,58.73051593]
[1746586725611,9.13779343,146.97,146.93,6.80596202]
[1746586725811,9.13779343,146.95,146.92,6.80626396]
[1746586727226,143.895,146.98,146.92,6.80626396]
[1746586727433,9.13779343,146.97,146.92,6.80626396]
[1746586727608,9.13779343,146.96,146.92,6.80626396]
[1746586728012,9.13779343,146.94,146.91,23.08673987]
[1746586728239,9.13779343,146.94,146.91,6.80673987]
[1746586729315,35.13779343,146.95,146.9,25.4570008]
[1746586733738,35.13779343,146.95,146.9,42.47538065]
[1746586735240,9.13779343,146.96,146.9,42.47538065]
[1746586736047,35.13779343,146.97,146.9,42.47538065]
[1746586736241,35.13779343,146.97,146.9,58.73538065]
[1746586736743,9.13779343,146.96,146.9,58.73538065]
[1746586736930,35.13779343,146.97,146.9,58.73538065]
[1746586739748,26.0,146.97,146.9,58.73538065]
[1746586740053,9.13779343,146.96,146.9,58.73538065]
[1746586740960,9.13779343,146.95,146.9,58.73538065]
[1746586741453,9.13779343,146.96,146.9,58.73538065]
[1746586743343,169.895,146.98,146.9,58.73538065]
[1746586743845,9.13779343,146.96,146.9,58.73538065]
[1746586744643,9.13779343,146.95,146.91,16.26]
[1746586746552,9.13779343,146.95,146.92,6.80642526]
[1746586747154,9.13779343,146.96,146.92,6.80642526]
[1746586750147,9.13779343,146.95,146.92,6.80642526]
[1746586752751,9.13779343,146.95,146.91,6.80688857]
[1746586753452,9.13779343,146.96,146.91,6.80688857]
[1746586755753,176.69881457,146.98,146.91,6.80688857]
[1746586756057,9.13779343,146.96,146.91,6.80688857]
[1746586758153,176.69881457,146.98,146.91,6.80688857]
[1746586758342,9.13779343,146.97,146.91,6.80688857]
[1746586760254,9.13779343,146.97,146.91,23.82410999]
[1746586760565,179.03279343,146.98,146.91,23.82410999]
[1746586763662,9.13779343,146.97,146.91,23.82410999]
[1746586779781,169.895,146.98,146.91,23.82410999]
[1746586779969,137.7,146.98,146.92,18.64964886]
[1746586781488,137.7,146.98,146.93,23.82086707]
[1746586784683,146.83779343,146.98,146.93,23.82086707]
[1746586786084,137.7,146.98,146.93,23.82086707]
[1746586786382,137.7,146.98,146.95,6.80503572]
[1746586786558,9.13779343,146.99,146.95,6.80503572]
[1746586786763,9.05133873,146.99,146.95,6.80503572]
[1746586796393,9.13779343,146.98,146.95,6.80503572]
[1746586798876,9.13779343,146.98,146.93,23.82086707]
[1746586800198,9.13779343,146.97,146.93,23.82086707]
[1746586800504,9.13779343,146.97,146.93,6.80596202]
[1746586800703,9.13779343,146.95,146.91,6.80688857]
[1746586800868,9.13779343,146.93,146.91,6.80688857]
[1746586801074,9.13779343,146.93,146.9,23.06714332]
[1746586801292,163.7,146.95,146.86,34.89453403]
[1746586801479,9.13779343,146.9,146.87,6.80874242]
[1746586801683,9.13779343,146.89,146.86,23.02911289]
[1746586801880,9.13779343,146.89,146.86,16.22]
[1746586802178,9.13779343,146.89,146.83,6.81019145]
[1746586802374,9.13779343,146.87,146.83,6.81019145]
[1746586802800,137.7,146.88,146.83,6.81019145]
[1746586802982,137.7,146.88,146.82,39.25087938]
[1746586803500,146.83779343,146.88,146.82,39.25087938]
[1746586803800,137.7,146.88,146.83,18.64964886]
[1746586803990,137.7,146.91,146.84,0.14216157]
[1746586804180,137.7,146.91,146.86,18.64964886]
[1746586804377,9.13779343,146.94,146.88,18.64964886]
[1746586804885,9.13779343,146.94,146.89,6.80781537]
[1746586806599,9.13779343,146.93,146.89,23.8273538]
[1746586806795,9.13779343,146.94,146.89,23.8273538]
[1746586807603,163.7,146.95,146.89,23.8273538]
[1746586808104,177.9865872,146.95,146.89,23.8273538]
[1746586810377,163.7,146.95,146.9,18.64964886]
[1746586810604,163.7,146.95,146.92,6.80642526]
[1746586810804,137.7,146.95,146.92,6.80642526]
[1746586811006,137.7,146.95,146.92,23.82248842]
[1746586811394,137.7,146.95,146.92,40.04248842]
[1746586812003,144.3388,146.99,146.92,56.24248842]
[1746586812188,158.6253872,146.99,146.93,18.64964886]
[1746586812388,14.2865872,146.98,146.93,18.64964886]
[1746586812594,14.2865872,146.98,146.94,6.80549884]
[1746586813102,170.3388,146.99,146.94,6.80549884]
[1746586813303,184.6253872,146.99,146.94,6.80549884]
[1746586813688,170.3388,146.99,146.94,6.80549884]
[1746586813909,14.2865872,146.96,146.94,6.80549884]
[1746586816413,14.2865872,146.96,146.93,6.80596202]
[1746586818512,14.2865872,146.97,146.93,6.80596202]
[1746586818921,170.3388,146.99,146.93,6.80596202]
[1746586819215,151.9865872,146.98,146.93,6.80596202]
[1746586819710,14.2865872,146.97,146.93,6.80596202]
[1746586821716,14.2865872,146.97,146.93,23.82086707]
[1746586822024,151.9865872,146.98,146.93,23.82086707]
[1746586824311,137.7,146.98,146.93,23.82086707]
[1746586824813,151.9865872,146.98,146.93,23.82086707]
[1746586825313,14.2865872,146.97,146.93,23.82086707]
[1746586826412,151.9865872,146.98,146.93,23.82086707]
[1746586827622,137.7,146.98,146.93,23.82086707]
[1746586827820,151.9865872,146.98,146.93,23.82086707]
[1746586830126,137.7,146.98,146.93,23.82086707]
[1746586833225,14.2865872,146.97,146.93,23.82086707]
[1746586834035,151.9865872,146.98,146.93,23.82086707]
[1746586834934,14.2865872,146.97,146.93,23.82086707]
[1746586835831,137.7,146.98,146.93,23.82086707]
[1746586836004,151.9865872,146.98,146.93,23.82086707]
[1746586836510,137.7,146.98,146.93,23.82086707]
[1746586836835,137.7,146.98,146.94,18.64964886]
[1746586837833,137.7,146.98,146.95,6.80503572]
[1746586840212,40.2865872,147.0,146.95,6.80503572]
[1746586840626,14.2865872,146.99,146.95,6.80503572]
[1746586842231,14.2865872,146.97,146.93,6.80596202]
[1746586844834,14.2865872,146.98,146.93,6.80596202]
[1746586847223,137.7,146.99,146.93,6.80596202]
[1746586847739,14.2865872,146.98,146.93,6.80596202]
[1746586848221,151.9865872,146.99,146.93,6.80596202]
[1746586849044,137.7,146.99,146.93,6.80596202]
[1746586849635,137.7,146.99,146.95,6.80503572]
[1746586850632,151.9865872,146.99,146.95,6.80503572]
[1746586854846,137.7,146.99,146.95,6.80503572]
[1746586857059,14.2865872,146.96,146.91,27.6591]
[1746586857243,14.2865872,146.96,146.91,1.6591]
[1746586857450,14.2865872,146.97,146.91,1.6591]
[1746586857753,9.14086477,146.97,146.91,1.6591]
[1746586858155,9.14086477,146.97,146.92,6.80642526]
[1746586858449,9.14086477,146.96,146.92,6.80642526]
[1746586858657,9.14086477,146.97,146.92,6.80642526]
[1746586859451,9.14086477,146.96,146.92,6.80642526]
[1746586859661,6.80423659,146.97,146.9,22.98730343]
[1746586859662,9.14086477,146.94,146.9,22.98730343]
[1746586859871,14.28864379,146.93,146.9,22.98730343]
[1746586860039,14.28864379,146.93,146.9,16.18]
[1746586860548,14.28864379,146.91,146.9,16.18]
[1746586860767,14.28864379,146.91,146.87,255.06]
[1746586860934,14.28864379,146.91,146.86,32.36]
[1746586861260,14.28864379,146.91,146.86,16.18]
[1746586861949,14.28864379,146.9,146.86,16.18]
[1746586862159,14.28864379,146.89,146.86,22.98909419]
[1746586863257,14.28864379,146.9,146.86,22.98909419]
[1746586863661,137.7,146.91,146.86,22.98909419]
[1746586864662,139.2396,146.94,146.87,18.64964886]
[1746586864840,177.98864379,146.94,146.87,18.64964886]
[1746586865660,177.98864379,146.94,146.88,23.82897602]
[1746586866663,177.98864379,146.94,146.88,23.74252131]
[1746586867463,163.7,146.94,146.88,23.74252131]
[1746586867763,177.98864379,146.94,146.88,23.74252131]
[1746586870868,151.98864379,146.94,146.88,23.74252131]
[1746586873172,137.7,146.94,146.88,23.74252131]
[1746586873470,151.98864379,146.94,146.88,23.74252131]
[1746586878773,14.28864379,146.93,146.88,23.74252131]
[1746586879269,151.98864379,146.94,146.88,23.74252131]
[1746586881369,14.28864379,146.92,146.88,23.74252131]
[1746586884679,6.5787,146.89,146.79,1.5741]
[1746586884866,6.5787,146.89,146.8,6.8119891]
[1746586884867,14.28864379,146.83,146.8,6.8119891]
[1746586885178,14.28864379,146.83,146.79,8.3864206]
[1746586885383,14.28864379,146.83,146.79,6.8123206]
[1746586886377,14.28864379,146.83,146.78,25.46256615]
[1746586889093,14.28864379,146.83,146.78,41.64256615]
[1746586889461,14.28864379,146.83,146.78,25.46256615]
[1746586889870,137.7,146.85,146.78,25.46256615]
[1746586890678,14.28864379,146.8,146.78,6.81291729]
[1746586891057,14.28864379,146.8,146.77,6.81322776]
[1746586891460,14.28864379,146.81,146.77,6.81322776]
[1746586892459,14.28864379,146.8,146.74,22.99440639]
[1746586892665,14.28864379,146.8,146.74,39.17440639]
[1746586894083,14.28864379,146.79,146.74,39.17440639]
[1746586894290,14.28864379,146.8,146.74,39.17440639]
[1746586894482,14.28864379,146.81,146.75,18.64964886]
[1746586895270,151.98864379,146.82,146.75,18.64964886]
[1746586895674,137.7,146.82,146.75,18.64964886]
[1746586895874,151.98864379,146.82,146.75,18.64964886]
[1746586896681,151.98864379,146.82,146.76,6.81384573]
[1746586899874,14.28864379,146.81,146.76,6.81384573]
[1746586901690,14.28864379,146.8,146.76,6.81384573]
[1746586902288,14.28864379,146.81,146.76,6.81384573]
[1746586904972,14.28864379,146.77,146.74,6.81477443]
[1746586905183,14.28864379,146.76,146.73,6.81504283]
[1746586905490,14.28864379,146.76,146.72,16.18]
[1746586905673,14.28864379,146.75,146.72,16.18]
[1746586906466,14.28864379,146.75,146.71,25.46553416]
[1746586906669,14.28864379,146.76,146.71,25.46553416]
[1746586908097,14.28864379,146.75,146.7,16.18]
[1746586908273,14.28864379,146.74,146.7,16.18]
[1746586908475,14.28864379,146.73,146.7,16.18]
[1746586911290,14.28864379,146.71,146.64,23.86797599]
[1746586911497,14.28864379,146.71,146.65,18.64964886]
[1746586911698,14.28864379,146.71,146.64,23.86797599]
[1746586911871,137.7,146.72,146.65,18.64964886]
[1746586912501,151.98864379,146.72,146.65,18.64964886]
[1746586912793,26.0,146.75,146.66,26.14216157]
[1746586912997,151.98864379,146.76,146.67,20.30014886]
[1746586913191,151.98864379,146.76,146.69,18.64964886]
[1746586913385,151.98864379,146.76,146.7,6.81663258]
[1746586914901,14.28864379,146.75,146.7,6.81663258]
[1746586916204,47.82494379,146.77,146.7,23.85821403]
[1746586916996,47.82494379,146.77,146.69,25.46674613]
[1746586916997,14.28864379,146.75,146.69,25.46674613]
[1746586917205,14.28864379,146.76,146.69,25.46674613]
[1746586918099,14.28864379,146.76,146.71,6.81616795]
[1746586918402,6.81309508,146.78,146.72,18.64964886]
[1746586918606,1.5419,146.8,146.72,18.64964886]
[1746586918607,22.64269374,146.8,146.72,18.64964886]
[1746586918795,26.0,146.79,146.73,32.38]
[1746586920107,26.0,146.79,146.74,6.81477443]
[1746586921406,40.28864379,146.79,146.74,6.81477443]
[1746586922608,14.28864379,146.8,146.74,6.81477443]
[1746586922794,40.28864379,146.8,146.74,6.81477443]
[1746586922984,14.28864379,146.79,146.74,6.81477443]
[1746586923306,14.28864379,146.78,146.73,39.1950553]
[1746586923602,14.28864379,146.79,146.73,39.1950553]
[1746586923799,14.28864379,146.78,146.73,16.18]
[1746586924006,14.28864379,146.76,146.73,16.18]
[1746586924804,14.28864379,146.76,146.73,22.9952121]
[1746586925403,6.81306833,146.78,146.73,22.9952121]
[1746586925404,14.28864379,146.77,146.73,22.9952121]
[1746586925584,137.7,146.79,146.73,22.9952121]
[1746586925791,14.28864379,146.78,146.73,22.9952121]
[1746586927088,137.7,146.79,146.75,6.81431005]
[1746586930498,14.28864379,146.8,146.75,6.81431005]
[1746586931413,32.81155556,146.81,146.75,6.81431005]
[1746586931803,14.28864379,146.8,146.75,6.81431005]
[1746586935219,14.28864379,146.79,146.75,6.81431005]
[1746586935407,14.28864379,146.8,146.75,6.81431005]
[1746586936499,14.28864379,146.79,146.75,6.81431005]
[1746586936721,14.28864379,146.78,146.75,6.81431005]
[1746586937528,14.28864379,146.79,146.75,6.81431005]
[1746586938405,14.28864379,146.76,146.69,17.8404]
[1746586938703,14.28864379,146.74,146.7,25.46628144]
[1746586939628,14.28864379,146.75,146.7,25.46628144]
[1746586940224,14.28864379,146.76,146.7,42.50786289]
[1746586940404,163.7,146.78,146.7,42.50786289]
[1746586940604,14.28864379,146.77,146.7,42.50786289]
[1746586941318,14.28864379,146.76,146.7,42.50786289]
[1746586943928,14.28864379,146.75,146.7,42.50786289]
[1746586949436,14.28864379,146.74,146.7,25.46628144]
[1746586952647,14.28864379,146.74,146.7,6.81663258]
[1746586952935,14.28864379,146.73,146.7,6.81663258]
[1746586954530,6.81462968,146.75,146.7,6.81663258]
[1746586954744,14.28864379,146.74,146.7,6.81663258]
[1746586957543,14.28864379,146.73,146.69,22.99692559]
[1746586960143,14.28864379,146.72,146.69,22.99692559]
[1746586960558,6.81483094,146.74,146.69,22.99692559]
[1746586960760,14.28864379,146.73,146.69,22.99692559]
[1746586962147,14.28864379,146.72,146.69,16.18]
[1746586962444,14.28864379,146.71,146.69,16.18]
[1746586964548,14.28864379,146.72,146.69,16.18]
[1746586965248,14.28864379,146.71,146.69,16.18]
[1746586966129,14.28864379,146.71,146.67,6.817677]
[1746586966466,14.28864379,146.7,146.66,6.81849174]
[1746586967453,14.28864379,146.71,146.66,6.81849174]
[1746586968426,6.81590216,146.72,146.66,6.81849174]
[1746586968626,14.28864379,146.71,146.66,6.81849174]
[1746586969826,14.28864379,146.72,146.66,6.81849174]
[1746586970555,14.28864379,146.71,146.66,6.81849174]
[1746586972855,14.28864379,146.7,146.66,6.81849174]
[1746586974652,6.81571132,146.72,146.66,6.81849174]
[1746586974862,14.28864379,146.7,146.66,6.81849174]
[1746586979956,14.28864379,146.71,146.66,6.81849174]
[1746586982173,137.7,146.73,146.66,6.81849174]
[1746586982546,151.98864379,146.73,146.66,23.86472111]
[1746586984147,137.7,146.73,146.66,23.86472111]
[1746586984376,151.98864379,146.73,146.66,23.86472111]
[1746586984583,137.7,146.76,146.67,20.16844886]
[1746586984786,14.28864379,146.75,146.67,20.16844886]
[1746586985378,14.28864379,146.74,146.67,20.16844886]
[1746586985972,14.28864379,146.74,146.68,6.81756203]
[1746586988675,14.28864379,146.73,146.68,6.81756203]
[1746586989456,6.81434874,146.75,146.68,6.81756203]
[1746586989652,144.51402868,146.76,146.68,6.81756203]
[1746586989876,14.28864379,146.75,146.68,6.81756203]
[1746586990265,151.98864379,146.76,146.68,23.86146712]
[1746586990471,137.7,146.76,146.68,23.86146712]
[1746586990776,151.98864379,146.76,146.68,23.86146712]
[1746586991076,137.7,146.76,146.69,18.64964886]
[1746586991297,137.7,146.76,146.7,32.36]
[1746586991487,3.64510432,146.82,146.73,44.64964886]
[1746586991690,137.7,146.86,146.76,18.64964886]
[1746586991867,137.7,146.86,146.77,32.36]
[1746586992188,41.40395688,146.87,146.8,1.5403]
[1746586992358,41.40395688,146.87,146.81,18.64964886]
[1746586992563,41.40395688,146.87,146.82,39.17106116]
[1746586992890,41.40395688,146.87,146.82,57.82071002]
[1746586993389,41.40395688,146.87,146.82,57.96287159]
[1746586994195,137.7,146.89,146.82,57.96287159]
[1746586994196,137.7,146.89,146.83,0.14216157]
[1746586994361,14.28864379,146.9,146.83,0.14216157]
[1746586994560,6.4635,146.92,146.84,23.83546716]
[1746586994788,14.28864379,146.91,146.84,23.83546716]
[1746586994986,14.28864379,146.9,146.84,23.83546716]
[1746586996486,14.28864379,146.9,146.84,17.02533369]
[1746586997495,14.28864379,146.9,146.83,6.81059728]
[1746586997698,14.28864379,146.89,146.83,6.81059728]
[1746586998191,14.28864379,146.87,146.83,6.81059728]
[1746586999194,14.28864379,146.88,146.83,6.81059728]
[1746587000096,14.28864379,146.88,146.83,22.97059728]
[1746587002869,144.50750718,146.9,146.83,22.97059728]
[1746587002870,14.28864379,146.86,146.83,22.97059728]
[1746587003389,14.28864379,146.88,146.83,22.97059728]
[1746587003587,14.28864379,146.87,146.83,22.97059728]
[1746587003792,14.28864379,146.86,146.83,22.97059728]
[1746587004271,14.28864379,146.87,146.83,22.97059728]
[1746587004894,14.28864379,146.88,146.83,22.97059728]
[1746587005206,26.0,146.89,146.83,16.16]
[1746587005207,14.28864379,146.85,146.83,16.16]
[1746587005365,14.28864379,146.86,146.83,16.16]
[1746587005567,14.28864379,146.86,146.83,22.97043215]
[1746587005782,14.28864379,146.87,146.83,22.97043215]
[1746587006175,14.28864379,146.87,146.83,16.16]
[1746587006376,14.28864379,146.86,146.83,16.16]
[1746587006578,14.28864379,146.84,146.8,8.3522357]
[1746587006895,14.28864379,146.81,146.77,6.81338148]
[1746587007197,14.28864379,146.79,146.76,262.09375691]
[1746587007400,14.28864379,146.8,146.76,262.09375691]
[1746587011699,14.28864379,146.78,146.75,16.16]
[1746587011910,14.28864379,146.77,146.75,16.16]
[1746587013981,14.28864379,146.76,146.75,16.16]